[Event "Titled Tuesday Blitz August 22 Early 2023"]
[White "Zepeda Berlanga, Jan Enrique"]
[Black "Tomaszewski, Kacper"]
[WhiteFideId "5132355"]
[BlackFideId "1127373"]
[WhiteElo "2001"]
[BlackElo "2425"]
[Result "0-1"]
[Round "2"]
[TimeControl "180+1"]
[Date "2023.08.22"]
[WhiteClock "0:00:13"]
[BlackClock "0:00:15"]
[Board "263"]

1. c4 {[%clk 0:03:00]}  c6 {[%clk 0:02:59]} 2. Nf3 {[%clk 0:02:59]}  Nf6 {[%clk 0:02:58]} 3. Nc3 {[%clk 0:02:57]}  a6 {[%clk 0:02:54]} 4. e4 {[%clk 0:02:50]}  d5 {[%clk 0:02:43]} 5. e5 {[%clk 0:02:41]}  Ne4 {[%clk 0:02:41]} 6. d4 {[%clk 0:02:37]}  Bg4 {[%clk 0:02:35]} 7. Bd3 {[%clk 0:02:29]}  Nxc3 {[%clk 0:02:24]} 8. bxc3 {[%clk 0:02:28]}  dxc4 {[%clk 0:02:23]} 9. Bxc4 {[%clk 0:02:28]}  e6 {[%clk 0:02:24]} 10. h3 {[%clk 0:02:24]}  Bh5 {[%clk 0:02:22]} 11. O-O {[%clk 0:02:05]}  Nd7 {[%clk 0:02:21]} 12. a4 {[%clk 0:02:01]}  Nb6 {[%clk 0:02:19]} 13. Be2 {[%clk 0:01:55]}  Nd5 {[%clk 0:02:18]} 14. a5 {[%clk 0:01:49]}  Nxc3 {[%clk 0:02:15]} 15. Qd3 {[%clk 0:01:44]}  Nxe2+ {[%clk 0:02:14]} 16. Qxe2 {[%clk 0:01:44]}  Bxf3 {[%clk 0:02:14]} 17. Qxf3 {[%clk 0:01:44]}  Qxd4 {[%clk 0:02:14]} 18. Be3 {[%clk 0:01:41]}  Qxe5 {[%clk 0:02:10]} 19. Rfb1 {[%clk 0:01:40]}  Bd6 {[%clk 0:02:03]} 20. g3 {[%clk 0:01:36]}  Qd5 {[%clk 0:01:57]} 21. Qg4 {[%clk 0:01:34]}  Be5 {[%clk 0:01:49]} 22. Ra3 {[%clk 0:01:12]}  O-O {[%clk 0:01:34]} 23. Rxb7 {[%clk 0:01:10]}  Rab8 {[%clk 0:01:28]} 24. Rb6 {[%clk 0:01:08]}  c5 {[%clk 0:01:03]} 25. Qe2 {[%clk 0:00:54]}  Bd4 {[%clk 0:00:46]} 26. Qxa6 {[%clk 0:00:28]}  Bxe3 {[%clk 0:00:42]} 27. Rxe3 {[%clk 0:00:27]}  c4 {[%clk 0:00:36]} 28. Rc3 {[%clk 0:00:19]}  Rbc8 {[%clk 0:00:30]} 29. Rb2 {[%clk 0:00:19]}  h5 {[%clk 0:00:25]} 30. Qb7 {[%clk 0:00:17]}  Qxa5 {[%clk 0:00:22]} 31. Rbc2 {[%clk 0:00:17]}  Qd5 {[%clk 0:00:21]} 32. Qb4 {[%clk 0:00:16]}  Rb8 {[%clk 0:00:19]} 33. Qxc4 {[%clk 0:00:16]}  Rb1+ {[%clk 0:00:19]} 34. Rc1 {[%clk 0:00:15]}  Rxc1+ {[%clk 0:00:15]} 35. Rxc1 {[%clk 0:00:14]}  g6 {[%clk 0:00:13]} 36. Qxd5 {[%clk 0:00:14]}  exd5 {[%clk 0:00:13]} 37. Rd1 {[%clk 0:00:12]}  Rd8 {[%clk 0:00:14]} 38. f4 {[%clk 0:00:12]}  Kg7 {[%clk 0:00:14]} 39. Kf2 {[%clk 0:00:13]}  Kf6 {[%clk 0:00:15]} 40. Ke3 {[%clk 0:00:14]}  Ke6 {[%clk 0:00:15]} 41. g4 {[%clk 0:00:13]}  hxg4 {[%clk 0:00:14]} 42. hxg4 {[%clk 0:00:13]}  Ra8 {[%clk 0:00:14]} 43. Rd3 {[%clk 0:00:13]}  Ra4 {[%clk 0:00:14]} 44. Kf3 {[%clk 0:00:13]}  Kd6 {[%clk 0:00:15]} 45. f5 {[%clk 0:00:13]}  g5 {[%clk 0:00:15]} 46. Kg3 {[%clk 0:00:11]}  Rf4 {[%clk 0:00:14]} 47. Rd2 {[%clk 0:00:09]}  d4 {[%clk 0:00:15]} 48. Rf2 {[%clk 0:00:09]}  Rxf2 {[%clk 0:00:14]} 49. Kxf2 {[%clk 0:00:09]}  Ke5 {[%clk 0:00:15]} 50. Kf3 {[%clk 0:00:09]}  f6 {[%clk 0:00:14]} 51. Kf2 {[%clk 0:00:08]}  Ke4 {[%clk 0:00:15]} 52. Ke2 {[%clk 0:00:08]}  Kf4 {[%clk 0:00:15]} 53. Kd3 {[%clk 0:00:09]}  Kxg4 {[%clk 0:00:16]} 54. Kxd4 {[%clk 0:00:09]}  Kxf5 {[%clk 0:00:17]} 55. Ke3 {[%clk 0:00:10]}  Ke5 {[%clk 0:00:17]} 56. Kf3 {[%clk 0:00:10]}  f5 {[%clk 0:00:18]} 57. Kf2 {[%clk 0:00:11]}  g4 {[%clk 0:00:19]} 58. Kg3 {[%clk 0:00:12]}  Ke4 {[%clk 0:00:19]} 59. Kg2 {[%clk 0:00:13]}  f4 {[%clk 0:00:20]} 60. Kf2 {[%clk 0:00:14]}  f3 {[%clk 0:00:19]} 61. Kg1 {[%clk 0:00:15]}  g3 {[%clk 0:00:19]} 62. Kf1 {[%clk 0:00:15]}  Ke3 {[%clk 0:00:19]} 63. Kg1 {[%clk 0:00:16]}  g2 {[%clk 0:00:15]} 64. Kh2 {[%clk 0:00:15]}  Kf2 {[%clk 0:00:15]} 65. Kh3 {[%clk 0:00:13]}  g1=Q {[%clk 0:00:15]} 0-1


[Site "https://www.chess.com"]

[Event "Titled Tuesday Blitz August 22 Early 2023"]
[White "Goldin, Roman"]
[Black "cthake"]
[WhiteFideId "2803860"]
[WhiteElo "2421"]
[BlackElo "1830"]
[Result "1-0"]
[Round "2"]
[TimeControl "180+1"]
[Date "2023.08.22"]
[WhiteClock "0:00:39"]
[BlackClock "0:00:42"]
[Board "265"]

1. e4 {[%clk 0:02:58]}  c5 {[%clk 0:02:58]} 2. Nf3 {[%clk 0:02:58]}  Nc6 {[%clk 0:02:58]} 3. c3 {[%clk 0:02:56]}  g6 {[%clk 0:02:53]} 4. d4 {[%clk 0:02:55]}  cxd4 {[%clk 0:02:53]} 5. cxd4 {[%clk 0:02:55]}  Bg7 {[%clk 0:02:53]} 6. d5 {[%clk 0:02:55]}  Ne5 {[%clk 0:02:52]} 7. Nc3 {[%clk 0:02:51]}  d6 {[%clk 0:02:43]} 8. Bb5+ {[%clk 0:02:48]}  Bd7 {[%clk 0:02:41]} 9. a4 {[%clk 0:02:35]}  Nxf3+ {[%clk 0:02:37]} 10. Qxf3 {[%clk 0:02:34]}  a6 {[%clk 0:02:38]} 11. Bd3 {[%clk 0:02:26]}  Nf6 {[%clk 0:02:33]} 12. h3 {[%clk 0:02:27]}  O-O {[%clk 0:02:33]} 13. O-O {[%clk 0:02:27]}  Rc8 {[%clk 0:02:30]} 14. Be3 {[%clk 0:02:18]}  Qa5 {[%clk 0:02:20]} 15. Rfc1 {[%clk 0:02:12]}  Rc7 {[%clk 0:02:10]} 16. Qe2 {[%clk 0:01:41]}  Rfc8 {[%clk 0:02:09]} 17. Rcb1 {[%clk 0:01:28]}  Ne8 {[%clk 0:02:03]} 18. b4 {[%clk 0:01:24]}  Bxc3 {[%clk 0:01:37]} 19. bxa5 {[%clk 0:01:22]}  Bxa1 {[%clk 0:01:37]} 20. Rxa1 {[%clk 0:01:21]}  Rc3 {[%clk 0:01:32]} 21. Bd4 {[%clk 0:01:07]}  R3c7 {[%clk 0:01:28]} 22. Qd2 {[%clk 0:01:01]}  Nf6 {[%clk 0:01:26]} 23. Bxf6 {[%clk 0:00:56]}  exf6 {[%clk 0:01:26]} 24. Qf4 {[%clk 0:00:54]}  Kg7 {[%clk 0:01:14]} 25. Qxd6 {[%clk 0:00:53]}  Be8 {[%clk 0:01:12]} 26. Kh2 {[%clk 0:00:49]}  h5 {[%clk 0:01:11]} 27. Rb1 {[%clk 0:00:46]}  Bxa4 {[%clk 0:01:09]} 28. Rb6 {[%clk 0:00:43]}  Rc5 {[%clk 0:00:47]} 29. Qxf6+ {[%clk 0:00:42]}  Kh6 {[%clk 0:00:45]} 30. Qxf7 {[%clk 0:00:40]}  Be8 {[%clk 0:00:42]} 31. Rxg6# {[%clk 0:00:39]} 1-0


[Site "https://www.chess.com"]

[Event "Titled Tuesday Blitz August 22 Early 2023"]
[White "Bauman_Guy"]
[Black "Nakamura, Hikaru"]
[BlackFideId "2016192"]
[WhiteElo "2802"]
[BlackElo "3224"]
[Result "1/2-1/2"]
[Round "3"]
[TimeControl "180+1"]
[Date "2023.08.22"]
[WhiteClock "0:01:19"]
[BlackClock "0:00:53"]
[Board "1"]

1. e4 {[%clk 0:03:00]}  a6 {[%clk 0:02:59]} 2. a4 {[%clk 0:03:00]}  c5 {[%clk 0:02:56]} 3. Nc3 {[%clk 0:02:58]}  e6 {[%clk 0:02:53]} 4. Bc4 {[%clk 0:02:55]}  Nf6 {[%clk 0:02:52]} 5. d3 {[%clk 0:02:56]}  d5 {[%clk 0:02:53]} 6. Ba2 {[%clk 0:02:55]}  Nc6 {[%clk 0:02:51]} 7. f4 {[%clk 0:02:52]}  Nb4 {[%clk 0:02:44]} 8. Bb1 {[%clk 0:02:45]}  b6 {[%clk 0:02:39]} 9. Nf3 {[%clk 0:02:44]}  dxe4 {[%clk 0:02:39]} 10. Nxe4 {[%clk 0:02:44]}  Bb7 {[%clk 0:02:39]} 11. c3 {[%clk 0:02:40]}  Nxd3+ {[%clk 0:02:36]} 12. Qxd3 {[%clk 0:02:40]}  Bxe4 {[%clk 0:02:30]} 13. Qe2 {[%clk 0:02:36]}  Bxb1 {[%clk 0:02:28]} 14. Rxb1 {[%clk 0:02:37]}  Bd6 {[%clk 0:02:26]} 15. f5 {[%clk 0:02:33]}  O-O {[%clk 0:02:25]} 16. fxe6 {[%clk 0:02:33]}  Re8 {[%clk 0:02:25]} 17. Ng5 {[%clk 0:02:29]}  fxe6 {[%clk 0:02:25]} 18. O-O {[%clk 0:02:29]}  Qc7 {[%clk 0:02:25]} 19. h3 {[%clk 0:02:22]}  Qc6 {[%clk 0:02:25]} 20. Be3 {[%clk 0:02:08]}  Bc7 {[%clk 0:02:13]} 21. Rxf6 {[%clk 0:01:47]}  gxf6 {[%clk 0:02:07]} 22. Nxh7 {[%clk 0:01:47]}  Be5 {[%clk 0:02:08]} 23. Qg4+ {[%clk 0:01:25]}  Kxh7 {[%clk 0:01:51]} 24. Qh5+ {[%clk 0:01:25]}  Kg8 {[%clk 0:01:51]} 25. Qg6+ {[%clk 0:01:20]}  Kh8 {[%clk 0:01:08]} 26. Qh6+ {[%clk 0:01:19]}  Kg8 {[%clk 0:01:08]} 27. Qg6+ {[%clk 0:01:19]}  Kh8 {[%clk 0:00:53]} 28. Qh6+ {[%clk 0:01:19]}  Kg8 {[%clk 0:00:53]} 29. Qg6+ {[%clk 0:01:19]} 1/2-1/2


[Site "https://www.chess.com"]

[Event "Titled Tuesday Blitz August 22 Early 2023"]
[White "Vakhlamov, Igor L."]
[Black "Vachier-Lagrave, Maxime"]
[WhiteFideId "24126748"]
[BlackFideId "623539"]
[WhiteElo "2800"]
[BlackElo "3138"]
[Result "0-1"]
[Round "3"]
[TimeControl "180+1"]
[Date "2023.08.22"]
[WhiteClock "0:00:04"]
[BlackClock "0:00:24"]
[Board "2"]

1. e4 {[%clk 0:02:57]}  e5 {[%clk 0:02:58]} 2. Nf3 {[%clk 0:02:58]}  Nc6 {[%clk 0:02:58]} 3. Nc3 {[%clk 0:02:58]}  Nf6 {[%clk 0:02:54]} 4. Bb5 {[%clk 0:02:59]}  Bd6 {[%clk 0:02:53]} 5. a3 {[%clk 0:02:58]}  O-O {[%clk 0:02:52]} 6. d3 {[%clk 0:02:59]}  a6 {[%clk 0:02:49]} 7. Bc4 {[%clk 0:02:59]}  b5 {[%clk 0:02:32]} 8. Ba2 {[%clk 0:02:56]}  Be7 {[%clk 0:02:24]} 9. Nd5 {[%clk 0:02:52]}  d6 {[%clk 0:02:21]} 10. O-O {[%clk 0:02:37]}  Rb8 {[%clk 0:02:09]} 11. h3 {[%clk 0:02:35]}  h6 {[%clk 0:02:00]} 12. Be3 {[%clk 0:02:31]}  Be6 {[%clk 0:01:59]} 13. Nh2 {[%clk 0:02:14]}  Nd4 {[%clk 0:01:50]} 14. c3 {[%clk 0:02:02]}  Bxd5 {[%clk 0:01:48]} 15. cxd4 {[%clk 0:01:25]}  Bxa2 {[%clk 0:01:47]} 16. Rxa2 {[%clk 0:01:26]}  exd4 {[%clk 0:01:43]} 17. Bxd4 {[%clk 0:01:27]}  c5 {[%clk 0:01:44]} 18. Bc3 {[%clk 0:01:26]}  d5 {[%clk 0:01:42]} 19. e5 {[%clk 0:01:13]}  Ne8 {[%clk 0:01:34]} 20. d4 {[%clk 0:01:14]}  Nc7 {[%clk 0:01:31]} 21. Ba5 {[%clk 0:01:06]}  Qd7 {[%clk 0:01:23]} 22. Bxc7 {[%clk 0:01:07]}  Qxc7 {[%clk 0:01:24]} 23. Ra1 {[%clk 0:01:00]}  cxd4 {[%clk 0:01:03]} 24. Qxd4 {[%clk 0:01:01]}  Qc4 {[%clk 0:01:03]} 25. Rad1 {[%clk 0:00:57]}  Rfd8 {[%clk 0:01:02]} 26. Qa7 {[%clk 0:00:50]}  Bc5 {[%clk 0:01:01]} 27. Qxa6 {[%clk 0:00:48]}  Ra8 {[%clk 0:01:00]} 28. Qb7 {[%clk 0:00:27]}  Ra7 {[%clk 0:01:00]} 29. b3 {[%clk 0:00:28]}  Rxb7 {[%clk 0:00:47]} 30. bxc4 {[%clk 0:00:28]}  bxc4 {[%clk 0:00:48]} 31. Ng4 {[%clk 0:00:21]}  d4 {[%clk 0:00:44]} 32. Rc1 {[%clk 0:00:20]}  c3 {[%clk 0:00:44]} 33. Rfd1 {[%clk 0:00:20]}  Bxa3 {[%clk 0:00:43]} 34. Rc2 {[%clk 0:00:20]}  Rb2 {[%clk 0:00:38]} 35. Rxc3 {[%clk 0:00:19]}  dxc3 {[%clk 0:00:38]} 36. Rxd8+ {[%clk 0:00:20]}  Kh7 {[%clk 0:00:38]} 37. Ne3 {[%clk 0:00:13]}  c2 {[%clk 0:00:30]} 38. Nxc2 {[%clk 0:00:08]}  Rxc2 {[%clk 0:00:31]} 39. Rd7 {[%clk 0:00:08]}  Kg6 {[%clk 0:00:30]} 40. f4 {[%clk 0:00:05]}  Bc5+ {[%clk 0:00:26]} 41. Kh1 {[%clk 0:00:06]}  Rc1+ {[%clk 0:00:21]} 42. Kh2 {[%clk 0:00:06]}  Bg1+ {[%clk 0:00:22]} 43. Kg3 {[%clk 0:00:05]}  Rc3+ {[%clk 0:00:22]} 44. Rd3 {[%clk 0:00:03]}  Rxd3+ {[%clk 0:00:22]} 45. Kh4 {[%clk 0:00:03]}  Bf2+ {[%clk 0:00:22]} 46. g3 {[%clk 0:00:04]}  Bxg3+ {[%clk 0:00:23]} 47. Kg4 {[%clk 0:00:04]}  h5# {[%clk 0:00:24]} 0-1


[Site "https://www.chess.com"]

[Event "Titled Tuesday Blitz August 22 Early 2023"]
[White "Cherniaiev, Tykhon"]
[Black "So, Wesley"]
[WhiteFideId "14182360"]
[BlackFideId "5202213"]
[WhiteElo "2793"]
[BlackElo "3111"]
[Result "0-1"]
[Round "3"]
[TimeControl "180+1"]
[Date "2023.08.22"]
[WhiteClock "0:00:02"]
[BlackClock "0:00:06"]
[Board "4"]

1. Nf3 {[%clk 0:03:00]}  c5 {[%clk 0:02:55]} 2. c4 {[%clk 0:03:00]}  Nf6 {[%clk 0:02:53]} 3. g3 {[%clk 0:03:01]}  d5 {[%clk 0:02:51]} 4. cxd5 {[%clk 0:03:01]}  Nxd5 {[%clk 0:02:52]} 5. Bg2 {[%clk 0:03:01]}  Nc6 {[%clk 0:02:52]} 6. O-O {[%clk 0:03:01]}  e5 {[%clk 0:02:52]} 7. d3 {[%clk 0:03:00]}  Be7 {[%clk 0:02:51]} 8. Nc3 {[%clk 0:03:01]}  Be6 {[%clk 0:02:51]} 9. Bd2 {[%clk 0:03:01]}  Nc7 {[%clk 0:02:47]} 10. a3 {[%clk 0:02:58]}  O-O {[%clk 0:02:47]} 11. Rc1 {[%clk 0:02:56]}  Rc8 {[%clk 0:02:45]} 12. Be3 {[%clk 0:02:48]}  Qd7 {[%clk 0:02:30]} 13. Qa4 {[%clk 0:01:56]}  b5 {[%clk 0:02:07]} 14. Qd1 {[%clk 0:01:26]}  f5 {[%clk 0:02:06]} 15. Ng5 {[%clk 0:00:43]}  Bxg5 {[%clk 0:02:04]} 16. Bxg5 {[%clk 0:00:44]}  Nd4 {[%clk 0:01:53]} 17. b4 {[%clk 0:00:32]}  cxb4 {[%clk 0:01:44]} 18. axb4 {[%clk 0:00:33]}  f4 {[%clk 0:01:44]} 19. Ne4 {[%clk 0:00:27]}  h6 {[%clk 0:01:43]} 20. Bh4 {[%clk 0:00:17]}  Na6 {[%clk 0:01:33]} 21. Rxc8 {[%clk 0:00:14]}  Rxc8 {[%clk 0:01:34]} 22. e3 {[%clk 0:00:13]}  Rc1 {[%clk 0:01:15]} 23. Qxc1 {[%clk 0:00:08]}  Ne2+ {[%clk 0:01:13]} 24. Kh1 {[%clk 0:00:09]}  Nxc1 {[%clk 0:01:14]} 25. Rxc1 {[%clk 0:00:10]}  fxe3 {[%clk 0:01:07]} 26. fxe3 {[%clk 0:00:10]}  Qxd3 {[%clk 0:01:05]} 27. Nc5 {[%clk 0:00:10]}  Qxe3 {[%clk 0:01:00]} 28. Rd1 {[%clk 0:00:04]}  Nxc5 {[%clk 0:00:55]} 29. bxc5 {[%clk 0:00:05]}  Qxc5 {[%clk 0:00:53]} 30. g4 {[%clk 0:00:05]}  Bxg4 {[%clk 0:00:47]} 31. Rd8+ {[%clk 0:00:05]}  Kf7 {[%clk 0:00:46]} 32. Bd5+ {[%clk 0:00:05]}  Kg6 {[%clk 0:00:45]} 33. Be4+ {[%clk 0:00:02]}  Kh5 {[%clk 0:00:45]} 34. Bg3 {[%clk 0:00:02]}  Qc4 {[%clk 0:00:33]} 35. Bg2 {[%clk 0:00:01]}  Qc1+ {[%clk 0:00:33]} 36. Bf1 {[%clk 0:00:02]}  Qxf1# {[%clk 0:00:06]} 0-1


[Site "https://www.chess.com"]

[Event "Titled Tuesday Blitz August 22 Early 2023"]
[White "Firouzja, Alireza"]
[Black "Adewumi, Tanitoluwa"]
[WhiteFideId "12573981"]
[BlackFideId "30966396"]
[WhiteElo "3107"]
[BlackElo "2791"]
[Result "1-0"]
[Round "3"]
[TimeControl "180+1"]
[Date "2023.08.22"]
[WhiteClock "0:00:02"]
[BlackClock "0:00:02"]
[Board "5"]

1. e4 {[%clk 0:03:00]}  c6 {[%clk 0:03:00]} 2. Nc3 {[%clk 0:03:00]}  d5 {[%clk 0:02:56]} 3. Qf3 {[%clk 0:02:59]}  dxe4 {[%clk 0:02:54]} 4. Nxe4 {[%clk 0:02:56]}  Nf6 {[%clk 0:02:53]} 5. Bc4 {[%clk 0:02:51]}  Nbd7 {[%clk 0:02:51]} 6. d4 {[%clk 0:02:47]}  e6 {[%clk 0:02:45]} 7. c3 {[%clk 0:02:43]}  Nxe4 {[%clk 0:02:41]} 8. Qxe4 {[%clk 0:02:43]}  Bd6 {[%clk 0:02:37]} 9. Nf3 {[%clk 0:02:43]}  O-O {[%clk 0:02:37]} 10. Bg5 {[%clk 0:02:33]}  Nf6 {[%clk 0:02:19]} 11. Qe2 {[%clk 0:02:27]}  h6 {[%clk 0:02:19]} 12. Bh4 {[%clk 0:02:25]}  b5 {[%clk 0:02:17]} 13. Bd3 {[%clk 0:02:25]}  Bb7 {[%clk 0:02:16]} 14. O-O {[%clk 0:02:18]}  a6 {[%clk 0:02:01]} 15. Rfe1 {[%clk 0:02:15]}  c5 {[%clk 0:01:58]} 16. Rad1 {[%clk 0:02:13]}  Qe7 {[%clk 0:01:45]} 17. Ne5 {[%clk 0:02:06]}  g5 {[%clk 0:01:17]} 18. Bg3 {[%clk 0:02:05]}  cxd4 {[%clk 0:01:17]} 19. cxd4 {[%clk 0:02:05]}  Rad8 {[%clk 0:01:04]} 20. h4 {[%clk 0:01:58]}  Kg7 {[%clk 0:01:04]} 21. Rf1 {[%clk 0:01:46]}  Nd5 {[%clk 0:00:47]} 22. hxg5 {[%clk 0:01:40]}  hxg5 {[%clk 0:00:45]} 23. f4 {[%clk 0:01:40]}  f5 {[%clk 0:00:20]} 24. Rde1 {[%clk 0:01:02]}  g4 {[%clk 0:00:12]} 25. Nxg4 {[%clk 0:00:58]}  Rh8 {[%clk 0:00:05]} 26. Nh2 {[%clk 0:00:50]}  Rde8 {[%clk 0:00:03]} 27. Qf2 {[%clk 0:00:44]}  Qf6 {[%clk 0:00:03]} 28. Bc2 {[%clk 0:00:34]}  Qh6 {[%clk 0:00:03]} 29. Bb3 {[%clk 0:00:31]}  Nxf4 {[%clk 0:00:04]} 30. Re3 {[%clk 0:00:15]}  Qg5 {[%clk 0:00:01]} 31. d5 {[%clk 0:00:11]}  Nh3+ {[%clk 0:00:01]} 32. gxh3 {[%clk 0:00:11]}  f4 {[%clk 0:00:02]} 33. Ng4 {[%clk 0:00:02]}  fxg3 {[%clk 0:00:02]} 34. Qf7# {[%clk 0:00:02]} 1-0


[Site "https://www.chess.com"]

[Event "Titled Tuesday Blitz August 22 Early 2023"]
[White "Krzyzanowski, Marcin"]
[Black "Erigaisi Arjun"]
[WhiteFideId "1132199"]
[BlackFideId "35009192"]
[WhiteElo "2780"]
[BlackElo "3057"]
[Result "0-1"]
[Round "3"]
[TimeControl "180+1"]
[Date "2023.08.22"]
[WhiteClock "0:00:01"]
[BlackClock "0:01:25"]
[Board "6"]

1. e4 {[%clk 0:02:52]}  c6 {[%clk 0:02:58]} 2. Nc3 {[%clk 0:02:51]}  d5 {[%clk 0:02:58]} 3. Nf3 {[%clk 0:02:52]}  Bg4 {[%clk 0:02:56]} 4. h3 {[%clk 0:02:50]}  Bh5 {[%clk 0:02:55]} 5. exd5 {[%clk 0:02:45]}  cxd5 {[%clk 0:02:56]} 6. d4 {[%clk 0:02:42]}  e6 {[%clk 0:02:53]} 7. Bb5+ {[%clk 0:02:39]}  Nc6 {[%clk 0:02:52]} 8. g4 {[%clk 0:02:39]}  Bg6 {[%clk 0:02:52]} 9. Ne5 {[%clk 0:02:40]}  Ne7 {[%clk 0:02:47]} 10. h4 {[%clk 0:02:25]}  h6 {[%clk 0:02:46]} 11. Qf3 {[%clk 0:02:15]}  h5 {[%clk 0:02:38]} 12. Nxg6 {[%clk 0:02:03]}  Nxg6 {[%clk 0:02:39]} 13. Bg5 {[%clk 0:01:48]}  hxg4 {[%clk 0:02:37]} 14. Qxg4 {[%clk 0:01:43]}  Be7 {[%clk 0:02:36]} 15. O-O-O {[%clk 0:01:35]}  Qd6 {[%clk 0:02:36]} 16. Bxe7 {[%clk 0:01:15]}  Kxe7 {[%clk 0:02:35]} 17. Ne2 {[%clk 0:01:14]}  Kf8 {[%clk 0:02:31]} 18. h5 {[%clk 0:01:14]}  Nge7 {[%clk 0:02:27]} 19. Rdg1 {[%clk 0:01:09]}  Nf5 {[%clk 0:02:27]} 20. Bxc6 {[%clk 0:01:08]}  Qxc6 {[%clk 0:02:21]} 21. Ng3 {[%clk 0:01:06]}  Nh6 {[%clk 0:02:12]} 22. Qf4 {[%clk 0:01:01]}  Rc8 {[%clk 0:02:09]} 23. c3 {[%clk 0:01:01]}  b5 {[%clk 0:02:09]} 24. Ne2 {[%clk 0:00:55]}  b4 {[%clk 0:02:09]} 25. Rh3 {[%clk 0:00:45]}  a5 {[%clk 0:02:05]} 26. Kb1 {[%clk 0:00:41]}  a4 {[%clk 0:02:01]} 27. Qe5 {[%clk 0:00:33]}  Nf5 {[%clk 0:01:55]} 28. Ng3 {[%clk 0:00:18]}  Nd6 {[%clk 0:01:53]} 29. h6 {[%clk 0:00:18]}  Rxh6 {[%clk 0:01:53]} 30. Rxh6 {[%clk 0:00:18]}  gxh6 {[%clk 0:01:54]} 31. Nh5 {[%clk 0:00:14]}  bxc3 {[%clk 0:01:41]} 32. Qf6 {[%clk 0:00:07]}  Ne8 {[%clk 0:01:40]} 33. Qxh6+ {[%clk 0:00:05]}  Ke7 {[%clk 0:01:41]} 34. Qg5+ {[%clk 0:00:05]}  Kd7 {[%clk 0:01:41]} 35. Rc1 {[%clk 0:00:04]}  Qb6 {[%clk 0:01:32]} 36. Rc2 {[%clk 0:00:02]}  Qxd4 {[%clk 0:01:33]} 37. Qg1 {[%clk 0:00:02]}  Rb8 {[%clk 0:01:32]} 38. Qc1 {[%clk 0:00:01]}  Rxb2+ {[%clk 0:01:26]} 39. Rxb2 {[%clk 0:00:02]}  cxb2 {[%clk 0:01:26]} 40. Qc2 {[%clk 0:00:02]}  Nd6 {[%clk 0:01:26]} 41. Ng3 {[%clk 0:00:02]}  Nb5 {[%clk 0:01:25]} 42. Ne2 {[%clk 0:00:01]}  Na3# {[%clk 0:01:25]} 0-1


[Site "https://www.chess.com"]

[Event "Titled Tuesday Blitz August 22 Early 2023"]
[White "Bortnyk, Olexandr"]
[Black "Kushko, Dmitriy"]
[WhiteFideId "14120828"]
[BlackFideId "14162261"]
[WhiteElo "3054"]
[BlackElo "2771"]
[Result "1-0"]
[Round "3"]
[TimeControl "180+1"]
[Date "2023.08.22"]
[WhiteClock "0:00:07"]
[BlackClock "0:00:00"]
[Board "7"]

1. d4 {[%clk 0:02:56]}  f5 {[%clk 0:02:59]} 2. Bg5 {[%clk 0:02:53]}  g6 {[%clk 0:02:58]} 3. e3 {[%clk 0:02:42]}  Bg7 {[%clk 0:02:57]} 4. Bc4 {[%clk 0:02:34]}  d5 {[%clk 0:02:43]} 5. Be2 {[%clk 0:02:29]}  Nh6 {[%clk 0:02:42]} 6. c4 {[%clk 0:02:27]}  Nf7 {[%clk 0:02:41]} 7. Bh4 {[%clk 0:02:26]}  c5 {[%clk 0:02:02]} 8. Nf3 {[%clk 0:02:11]}  cxd4 {[%clk 0:01:58]} 9. Nxd4 {[%clk 0:02:07]}  Nc6 {[%clk 0:01:45]} 10. Nxc6 {[%clk 0:01:46]}  bxc6 {[%clk 0:01:45]} 11. Nc3 {[%clk 0:01:47]}  d4 {[%clk 0:01:36]} 12. exd4 {[%clk 0:01:03]}  Qxd4 {[%clk 0:01:37]} 13. Qxd4 {[%clk 0:00:49]}  Bxd4 {[%clk 0:01:38]} 14. Bg3 {[%clk 0:00:49]}  e5 {[%clk 0:01:20]} 15. f4 {[%clk 0:00:48]}  e4 {[%clk 0:01:18]} 16. O-O-O {[%clk 0:00:48]}  Bf6 {[%clk 0:01:04]} 17. h4 {[%clk 0:00:45]}  Rb8 {[%clk 0:00:54]} 18. Na4 {[%clk 0:00:45]}  O-O {[%clk 0:00:34]} 19. Bf2 {[%clk 0:00:45]}  a6 {[%clk 0:00:29]} 20. h5 {[%clk 0:00:45]}  Nd8 {[%clk 0:00:19]} 21. hxg6 {[%clk 0:00:36]}  hxg6 {[%clk 0:00:19]} 22. Rd6 {[%clk 0:00:35]}  Kg7 {[%clk 0:00:14]} 23. b3 {[%clk 0:00:33]}  Be7 {[%clk 0:00:13]} 24. Bd4+ {[%clk 0:00:33]}  Kf7 {[%clk 0:00:10]} 25. Rh7+ {[%clk 0:00:32]}  Ke8 {[%clk 0:00:10]} 26. Rxg6 {[%clk 0:00:33]}  Ne6 {[%clk 0:00:10]} 27. Bh5 {[%clk 0:00:32]}  Kd8 {[%clk 0:00:09]} 28. Be5 {[%clk 0:00:31]}  Rb7 {[%clk 0:00:08]} 29. Kc2 {[%clk 0:00:24]}  c5 {[%clk 0:00:08]} 30. Rxe6 {[%clk 0:00:22]}  Bxe6 {[%clk 0:00:06]} 31. Nxc5 {[%clk 0:00:23]}  Rb6 {[%clk 0:00:05]} 32. Bd4 {[%clk 0:00:07]}  Rc6 {[%clk 0:00:05]} 33. Nb7+ {[%clk 0:00:06]}  Kd7 {[%clk 0:00:00]} 34. Bc5 {[%clk 0:00:07]} 1-0


[Site "https://www.chess.com"]